bitfinex/quotes_ETHUSD_20260226
["timestamp","ask_amount","ask_price","bid_price","bid_amount"]
[1772118127384,0.001,2049.9,2049.8,0.95888632]
[1772118127687,0.001,2050.9,2049.9,0.95888632]
[1772118128313,0.001,2051.1,2050.2,0.95888632]
[1772118128494,0.001,2051.1,2050.4,0.95888632]
[1772118128892,0.001,2051.4,2050.6,0.95888632]
[1772118129095,0.001,2051.4,2050.5,0.08192]
[1772118129096,1.21810099,2052.4,2051.0,0.95888632]
[1772118129305,1.21810099,2052.4,2051.2,0.95888632]
[1772118129488,1.21810099,2052.4,2051.1,1.006]
[1772118129489,2.17898134,2052.2,2051.1,2.22484967]
[1772118129905,1.21820485,2052.2,2051.1,2.22484967]
[1772118130106,1.21820485,2052.2,2051.1,2.22485556]
[1772118130417,2.17878983,2052.6,2051.2,0.95888632]
[1772118130594,1.21801334,2052.6,2051.2,0.95888632]
[1772118130794,1.21801334,2052.6,2051.3,1.96388632]
[1772118130995,1.21801334,2052.6,2051.4,0.95888632]
[1772118131595,1.21801334,2052.6,2051.4,2.17753422]
[1772118131797,0.96077649,2052.5,2051.3,1.005]
[1772118132125,0.96077649,2052.5,2051.3,2.22373376]
[1772118133022,0.96077649,2052.5,2051.0,1.21891694]
[1772118133219,0.96077649,2052.5,2050.5,0.95888632]
[1772118133421,0.96077649,2052.1,2050.6,2.22415536]
[1772118133618,1.21838296,2051.9,2050.7,2.17798223]
[1772118133787,3.06501589,2051.8,2050.6,1.005]
[1772118134118,0.96077649,2051.7,2050.1,4.74928413]
[1772118134317,0.96077649,2051.7,2050.1,5.70817045]
[1772118135020,0.96077649,2051.3,2050.1,2.22443449]
[1772118135514,0.96077649,2051.3,2050.1,1.005]
[1772118135713,2.17957524,2051.2,2050.1,1.005]
[1772118136098,0.96077649,2051.1,2050.1,1.005]
[1772118137816,1.2189176,2051.0,2050.1,2.22444645]
[1772118138035,1.218905,2051.1,2050.1,2.22444645]
[1772118138216,2.54871693,2051.4,2050.2,0.95888632]
[1772118138524,1.33,2051.4,2050.2,0.95888632]
[1772118138728,1.21844234,2051.8,2050.2,0.95888632]
[1772118139231,0.001,2051.1,2050.3,0.95888632]
[1772118139442,1.21844234,2051.8,2050.3,0.95888632]
[1772118139935,1.21844234,2051.8,2050.4,2.1781606]
[1772118140432,1.21844234,2051.8,2050.5,0.95888632]
[1772118140935,2.929,2052.4,2050.7,0.95888632]
[1772118141144,0.96077649,2052.2,2050.6,1.04080632]
[1772118141307,3.06501589,2052.0,2050.8,1.003]
[1772118141826,0.96077649,2051.9,2050.8,1.003]
[1772118142009,1.21850173,2051.7,2050.5,1.21921482]
[1772118142207,3.06501589,2051.6,2050.2,2.17823613]
[1772118142407,0.96077649,2051.5,2050.2,0.95888632]
[1772118142609,3.06501589,2051.2,2049.8,0.95888632]
[1772118142843,0.96077649,2051.0,2049.7,1.21969068]
[1772118144039,0.96077649,2051.0,2049.5,4.8792179]
[1772118144040,0.96077649,2050.8,2049.5,4.87908668]
[1772118144449,0.96077649,2050.7,2049.5,1.2198097]
[1772118144733,0.96077649,2050.7,2049.4,1.21986652]
[1772118145235,1.21897703,2050.9,2049.5,0.95888632]
[1772118146037,0.93862388,2050.9,2049.5,2.17866483]
[1772118146724,4.87590813,2051.0,2049.6,0.98421275]
[1772118146934,2.15712561,2051.8,2050.0,0.98421275]
[1772118147110,4.87402643,2051.7,2050.2,0.98421275]
[1772118148605,4.87402643,2051.7,2050.2,2.20356103]
[1772118148606,0.93862388,2051.5,2050.2,2.20356103]
[1772118149510,4.87402643,2051.7,2050.3,0.98421275]
[1772118150744,4.87402643,2051.7,2050.4,1.21927428]
[1772118151532,6.97826583,2051.7,2050.4,1.21927428]
[1772118151844,0.93962388,2051.6,2050.4,1.21927428]
[1772118152030,0.001,2051.6,2050.5,0.98421275]
[1772118152231,0.001,2051.6,2050.7,0.98421275]
[1772118152629,0.001,2051.6,2050.6,1.003]
[1772118152831,0.001,2051.6,2050.8,0.98421275]
[1772118153142,1.21830607,2052.1,2050.8,0.98421275]
[1772118153848,2.54522675,2052.2,2050.8,0.98421275]
[1772118154008,1.327,2052.2,2050.8,0.98421275]
[1772118154214,2.54496745,2052.6,2051.0,0.98421275]
[1772118154440,2.54496745,2052.6,2051.2,0.98421275]
[1772118154846,3.48359133,2052.6,2051.3,1.21873933]
[1772118155553,3.48359133,2052.6,2051.3,2.20295208]
[1772118156560,3.48359133,2052.6,2050.9,0.98421275]
[1772118156561,2.1042394,2052.5,2050.9,0.98421275]
[1772118156734,0.93862388,2052.4,2051.1,0.98421275]
[1772118156929,0.93862388,2052.4,2050.9,1.003]
[1772118156930,2.1042394,2052.1,2050.9,1.003]
[1772118157233,1.327,2052.0,2050.9,3.20614818]
[1772118157433,1.327,2052.0,2051.0,0.98421275]
[1772118158367,2.33715837,2052.0,2050.9,1.003]
[1772118158532,1.01015837,2051.7,2050.2,3.590413]
[1772118158726,1.01015837,2051.7,2050.2,4.80975864]
[1772118159049,1.01015837,2051.7,2050.2,5.81175864]
[1772118159050,1.21856112,2051.6,2050.2,5.81175864]
[1772118159354,2.10025134,2051.4,2050.2,5.81175864]
[1772118159848,3.42525134,2051.4,2050.2,5.81175864]
[1772118160156,3.42525134,2051.4,2050.2,1.002]
[1772118160157,2.10025134,2051.1,2050.2,1.002]
[1772118160354,2.10025134,2051.1,2050.2,2.22139217]
[1772118160527,3.42525134,2051.4,2050.2,3.23595886]
[1772118160853,1.21873933,2051.3,2050.2,3.23595886]
[1772118161551,1.21873933,2051.3,2050.2,1.004]
[1772118162259,1.21873933,2051.3,2050.2,2.01856669]
[1772118162443,1.21873933,2051.3,2050.3,1.01456669]
[1772118162844,1.21873933,2051.3,2050.4,1.21927428]
[1772118163052,2.54372315,2051.4,2050.4,2.23384097]
[1772118164266,1.01015837,2051.1,2049.9,1.21957021]
[1772118164438,2.54372315,2051.4,2050.0,1.01456669]
[1772118164835,1.01015837,2050.9,2049.8,0.0011]
[1772118165074,2.33515837,2050.9,2049.8,1.22072904]
[1772118165281,2.33515837,2050.9,2049.8,0.0011]
[1772118165597,2.33515837,2050.9,2050.1,0.0011]
[1772118165876,3.1106451,2050.8,2050.1,0.0011]
[1772118166044,1.01015837,2050.7,2050.1,0.0011]
[1772118166366,1.01015837,2050.7,2049.9,0.0011]
[1772118166586,1.01015837,2050.3,2049.5,0.0011]
[1772118166868,1.2194527,2050.1,2049.5,0.0011]
[1772118168863,2.22978955,2049.8,2049.0,0.0011]
[1772118169069,1.327,2049.7,2049.0,0.0011]
[1772118169644,1.21957895,2049.9,2049.0,0.0011]
[1772118169845,1.21954863,2050.0,2049.0,0.0011]
[1772118170972,1.21954863,2050.0,2049.0,1.22120736]
[1772118171175,1.21954863,2050.0,2049.0,0.0011]
[1772118172154,3.55537319,2050.6,2049.0,1.01566669]
[1772118172361,4.87688104,2050.5,2049.0,1.01566669]
[1772118172870,1.21921482,2050.5,2049.2,1.01456669]
[1772118173186,1.21921482,2050.5,2049.4,1.01456669]
[1772118173479,6.20272666,2050.6,2049.5,2.01556669]
[1772118173480,2.54519996,2050.6,2049.5,2.01556669]
[1772118173689,2.54519996,2050.6,2049.6,1.01456669]
[1772118173891,1.01015837,2051.0,2049.6,1.01456669]
[1772118174048,1.21897703,2050.9,2049.6,1.01456669]
[1772118174246,1.01015837,2051.4,2050.0,1.01456669]
[1772118174476,1.326,2051.5,2050.2,1.01456669]
[1772118174477,2.54463395,2051.5,2050.2,1.01456669]
[1772118174695,1.21856704,2051.6,2050.2,1.01456669]
[1772118175049,1.326,2051.9,2050.4,1.01456669]
[1772118175276,2.54439912,2051.9,2050.6,1.01456669]
[1772118175476,2.54439912,2051.9,2050.3,1.21933375]
[1772118175477,1.01015837,2051.8,2050.3,1.21933375]
[1772118175676,1.01015837,2051.7,2050.3,2.22033375]
[1772118175981,1.21839912,2051.9,2050.4,1.00011864]
[1772118176946,4.24381151,2051.9,2050.4,1.00011864]
[1772118177147,4.24381151,2051.9,2050.6,1.00011864]
[1772118177346,2.14332478,2051.9,2050.6,1.00011864]
[1772118177583,1.21839912,2051.9,2050.6,1.00011864]
[1772118178265,4.87297433,2052.2,2050.8,1.00011864]
[1772118178460,4.87297433,2052.2,2051.0,1.00011864]
[1772118179280,1.21820485,2052.3,2051.1,2.21897681]
[1772118179489,1.21820485,2052.3,2051.2,0.97574023]
[1772118179789,1.21820485,2052.3,2051.1,1.21885817]
[1772118180447,1.21820485,2052.3,2050.8,1.21900561]
[1772118180448,1.49853449,2051.8,2050.8,1.21900561]
[1772118180669,2.82353449,2051.8,2050.8,1.21900561]
[1772118180977,0.92492566,2052.1,2050.9,1.00011864]
[1772118180978,1.325,2051.9,2050.9,1.00011864]
[1772118181383,2.54342272,2051.9,2051.0,1.2189176]
[1772118181758,2.54342272,2051.9,2050.9,2.21909442]
[1772118181961,2.42346015,2051.8,2050.5,1.0]
[1772118182151,0.92492566,2051.8,2050.4,1.21927428]
[1772118182355,1.49853449,2051.1,2049.9,1.21957168]
[1772118182546,0.92492566,2051.3,2050.0,1.00011864]
[1772118182762,3.42408842,2051.7,2050.3,1.00011864]
[1772118182960,0.92492566,2051.6,2050.3,0.999]
[1772118183147,1.49853449,2051.5,2050.3,0.999]
[1772118183368,1.49853449,2051.5,2050.0,2.21959721]
[1772118183369,1.21885817,2051.1,2050.0,2.21959721]
[1772118183551,1.21885817,2051.1,2050.0,1.00011864]
[1772118183757,1.21885817,2051.1,2050.0,1.21948863]
[1772118184763,4.87504363,2051.3,2050.1,1.00011864]
[1772118185488,1.324,2051.4,2050.4,1.00011864]
[1772118185684,1.324,2051.4,2050.5,2.00011864]
[1772118185884,2.54268412,2051.4,2050.5,2.00011864]
[1772118186186,3.46760978,2051.4,2050.5,1.0]
[1772118187290,2.54268412,2051.4,2050.6,1.21915536]
[1772118187495,1.21856112,2051.6,2050.6,1.21915536]
[1772118187962,6.19876937,2052.1,2050.7,1.00011864]
[1772118189294,1.21879875,2051.2,2050.1,3.82929995]
[1772118189511,1.21879875,2051.2,2050.2,0.0011]
[1772118189512,1.325,2051.1,2050.2,0.0011]
[1772118191395,1.2189176,2051.0,2050.2,0.0011]
[1772118191695,10.018195,2051.6,2050.2,1.00121864]
[1772118191696,1.324,2051.5,2050.2,1.00121864]
[1772118191863,1.21856112,2051.6,2050.4,1.00011864]
[1772118192687,1.21854831,2051.7,2050.4,1.00011864]
[1772118192990,1.49853449,2051.6,2050.4,1.00011864]
[1772118193492,1.49853449,2051.3,2050.2,0.0011]
[1772118193677,2.24892566,2051.2,2050.2,0.0011]
[1772118194587,2.42346015,2051.0,2050.2,0.0011]
[1772118195620,2.14390269,2050.9,2050.2,0.0011]
[1772118195792,2.14390269,2050.9,2050.0,0.0011]
[1772118195793,0.92492566,2050.6,2050.0,0.0011]
[1772118195966,1.324,2050.5,2050.0,0.0011]
[1772118197795,1.21927428,2050.4,2050.0,0.0011]
[1772118198588,1.21927428,2050.4,2049.7,0.0011]
[1772118198589,2.14419994,2050.4,2049.7,0.0011]
[1772118199287,1.50159904,2050.3,2049.7,0.0011]
[1772118199492,1.50159904,2050.2,2049.2,1.22107549]
[1772118199689,2.5444839,2050.1,2049.2,2.22119413]
[1772118202289,2.5444839,2050.1,2049.0,4.88105315]
[1772118202290,1.50159904,2049.5,2049.0,0.0011]
[1772118202820,1.50159904,2049.6,2049.1,0.0011]
[1772118203380,1.50259904,2049.8,2049.1,0.0011]
[1772118203819,1.21969068,2049.7,2049.1,0.0011]
[1772118204987,1.50159904,2049.3,2048.7,0.0011]
[1772118205186,1.50159904,2049.2,2048.4,1.22046475]
[1772118205386,4.32819808,2049.6,2048.3,2.2155215]
[1772118205387,1.50159904,2049.0,2048.3,2.2155215]
[1772118205893,1.22004782,2049.1,2048.3,2.2155215]
[1772118206917,1.50159904,2049.2,2048.3,2.2155215]
[1772118207115,0.92492566,2049.5,2048.3,2.2155215]
[1772118207116,1.325,2049.4,2048.4,0.9553342]
[1772118207286,2.82659904,2049.4,2048.4,0.9553342]
[1772118207483,5.77879114,2049.9,2048.5,0.18685624]
[1772118207484,2.82659904,2049.9,2048.5,0.18685624]
[1772118207689,5.77745345,2050.3,2048.9,0.9553342]
[1772118207690,1.21946222,2050.1,2048.9,0.9553342]
[1772118207911,1.21939322,2050.2,2049.1,1.22004782]
[1772118208122,3.72662828,2050.3,2049.2,0.9553342]
[1772118208123,1.21935405,2050.3,2049.2,0.9553342]
[1772118208291,2.54314353,2050.7,2049.5,0.9553342]
[1772118208617,1.21901339,2050.9,2049.7,1.50159904]
[1772118208823,1.50159904,2050.9,2049.8,0.9553342]
[1772118208989,1.50159904,2050.6,2049.8,0.9553342]
[1772118209388,2.54296283,2051.0,2049.8,0.9553342]
[1772118209805,1.50159904,2050.9,2049.8,0.9553342]
[1772118210014,1.21903647,2050.8,2049.9,1.21957168]
[1772118210519,1.50159904,2051.6,2050.3,5.04439185]
[1772118210718,1.47333328,2051.8,2050.6,2.45693324]
[1772118210922,1.50159904,2051.5,2050.3,3.58145861]
[1772118211311,0.90002924,2051.7,2050.4,0.9553342]
[1772118211494,1.21847183,2051.8,2050.5,1.14219044]
[1772118211689,0.001,2051.9,2050.5,1.14219044]
[1772118211895,0.001,2051.9,2050.9,0.9553342]
[1772118212209,2.40005343,2051.7,2050.4,1.21927428]
[1772118212520,2.22302924,2051.7,2050.5,1.9493342]
[1772118212888,3.72305343,2051.7,2050.5,0.994]
[1772118213123,3.72305343,2051.7,2050.1,0.9553342]
[1772118213124,0.90002924,2051.3,2050.1,1.2194077]
[1772118213526,0.90002924,2051.0,2049.5,2.21375019]
[1772118213698,2.49046533,2051.8,2049.6,1.21975019]
[1772118213699,0.90002924,2050.7,2049.6,1.21975019]
[1772118214018,2.11924406,2050.5,2049.5,2.21380965]
[1772118214423,0.90002924,2050.4,2049.5,0.994]
[1772118214824,0.90002924,2050.4,2049.5,2.21379245]
[1772118215129,0.90002924,2050.4,2049.5,0.994]
[1772118215524,0.90002924,2050.4,2049.5,2.21380279]
[1772118216525,1.21933375,2050.3,2049.5,2.21380279]
[1772118216728,1.21933375,2050.3,2049.5,2.21380866]
[1772118216936,4.87647784,2050.7,2049.5,2.21380866]
[1772118217102,1.21909591,2050.7,2049.5,3.16914286]
[1772118218327,1.321,2051.0,2049.6,0.90120417]
[1772118218535,2.21703975,2051.0,2049.6,0.90120417]
[1772118218925,1.21867992,2051.5,2050.0,0.90120417]
[1772118219217,1.21867992,2051.5,2049.8,0.26877624]
[1772118219218,0.89603975,2051.4,2050.2,2.58745861]
[1772118219418,0.89603975,2051.4,2049.7,2.21369068]
[1772118219419,0.89603975,2051.0,2049.7,2.21369068]
[1772118219720,1.32,2051.4,2049.5,1.21976191]
[1772118219721,0.89603975,2050.7,2049.5,1.21976191]
[1772118220031,1.32,2050.6,2049.5,1.21976191]
[1772118220527,0.89603975,2051.2,2049.6,0.98312417]
[1772118220728,0.89603975,2051.2,2049.7,0.994]
[1772118220930,2.11489792,2051.1,2049.8,1.21963118]
[1772118221597,1.21867992,2051.4,2049.9,0.90120417]
[1772118221800,2.11471967,2051.4,2049.9,0.90120417]
[1772118222906,2.11471967,2051.4,2050.0,1.21951219]
[1772118223618,1.21867992,2051.4,2050.2,0.90120417]
[1772118223928,1.21867992,2051.4,2050.3,0.994]
[1772118225129,2.11471967,2051.4,2050.4,1.21927428]
[1772118225802,1.2196007,2051.6,2050.4,1.21927428]
[1772118226532,0.89603975,2051.5,2050.4,1.21927428]
[1772118227031,0.89603975,2051.5,2050.3,2.21331953]
[1772118227032,0.89603975,2051.3,2050.3,2.21331953]
[1772118227240,0.89603975,2051.2,2050.3,2.21331953]
[1772118227934,0.89703975,2051.2,2050.0,1.21951219]
[1772118228315,0.89603975,2050.9,2049.7,1.22074581]
[1772118228530,0.89603975,2050.7,2049.7,1.22074581]
[1772118229114,1.21915536,2050.6,2049.7,0.0011]
[1772118229637,2.11519511,2050.6,2049.7,0.0011]
[1772118229818,0.89603975,2050.5,2049.7,0.0011]
[1772118230310,0.89603975,2050.3,2049.7,0.0011]
[1772118230511,1.21915536,2050.6,2049.7,0.0011]
[1772118230928,5.77266122,2050.7,2049.7,0.0011]
[1772118230929,1.21914131,2050.7,2049.7,0.0011]
[1772118231139,1.21903647,2050.8,2049.7,0.0011]
[1772118231915,2.11507622,2050.8,2049.7,0.0011]
[1772118233744,1.21885817,2051.1,2049.9,0.90120417]
[1772118233913,1.21984548,2051.2,2050.0,1.89420417]
[1772118234117,2.10696123,2051.2,2050.0,1.89420417]
[1772118234314,0.89603975,2051.1,2050.0,0.993]
[1772118235627,2.11501678,2050.9,2050.0,2.21249479]
[1772118236751,0.97715545,2050.8,2049.7,1.22075844]
[1772118236962,0.97715545,2050.8,2049.7,1.22079054]
[1772118237344,1.50124457,2050.5,2049.7,1.22076977]
[1772118237531,1.50124457,2050.0,2049.5,0.0011]
[1772118237735,1.21957168,2049.9,2049.5,0.0011]
[1772118238179,2.720804,2050.0,2049.5,0.0011]
[1772118238373,1.21955943,2050.0,2049.5,0.0011]
[1772118238864,3.69795945,2050.0,2049.5,0.0011]
[1772118239048,1.50124457,2049.7,2049.2,0.0011]
[1772118239249,0.97715545,2049.9,2049.2,0.0011]
[1772118239737,1.21963118,2049.8,2049.2,0.0011]
[1772118240069,1.322,2049.7,2049.2,0.0011]
[1772118240369,0.97715545,2049.6,2048.9,0.0011]
[1772118241038,0.97715545,2049.6,2049.4,0.0011]
[1772118241238,0.97715545,2049.6,2048.9,0.0011]
[1772118241650,0.97715545,2049.6,2048.2,1.22054187]
[1772118241834,0.97715545,2049.4,2048.2,1.22054187]
[1772118242061,0.97715545,2049.2,2048.1,0.0011]
[1772118242258,0.97715545,2049.2,2048.1,1.22173889]
[1772118242446,0.97715545,2049.2,2048.1,0.0011]
[1772118242652,0.97715545,2049.2,2048.1,1.2217178]
[1772118243445,3.32299677,2049.5,2048.1,2.21283242]
[1772118243644,0.97715545,2049.4,2048.2,0.99111462]
[1772118243851,0.97715545,2049.2,2048.2,1.22052644]
[1772118244261,2.19690821,2049.6,2048.3,0.99111462]
[1772118244453,0.97715545,2049.5,2048.3,0.99111462]
[1772118244951,0.97715545,2049.5,2048.2,1.22052644]
[1772118245156,0.97715545,2049.4,2048.2,1.2205745]
[1772118245558,2.29915545,2049.4,2048.2,2.21168912]
[1772118245774,0.97715545,2049.4,2048.2,2.21168912]
[1772118245985,1.21992875,2049.3,2048.2,2.21168912]
[1772118246148,1.321,2050.1,2048.6,0.99111462]
[1772118246348,1.321,2050.1,2048.8,0.99111462]
[1772118246572,5.85482821,2050.2,2048.8,0.99111462]
[1772118246573,0.97715545,2050.2,2048.8,0.99111462]
[1772118246775,2.29815545,2050.2,2049.0,0.99111462]
[1772118247574,0.97715545,2050.1,2048.7,0.992]
[1772118248149,0.97715545,2049.9,2048.8,1.22022647]
[1772118248677,0.97715545,2049.9,2048.7,2.21224334]
[1772118248877,0.97715545,2049.9,2048.7,0.992]
[1772118249082,0.97715545,2049.9,2048.7,2.21228009]
[1772118249280,0.97715545,2049.8,2048.3,2.21148257]
[1772118249478,0.97715545,2049.8,2048.2,4.88219241]
[1772118249479,0.97715545,2049.6,2048.2,1.22055826]
[1772118249784,0.97715545,2049.6,2048.2,2.21167288]
[1772118250094,0.97715545,2049.6,2048.2,1.22055826]
[1772118250380,0.97715545,2049.4,2048.2,1.22055826]
[1772118250546,0.97715545,2049.4,2048.1,7.40338499]
[1772118250751,0.97715545,2049.0,2048.1,0.0011]
[1772118250951,0.97715545,2048.8,2048.1,0.0011]
[1772118251180,0.97715545,2048.8,2048.1,1.22173595]
[1772118251475,0.97715545,2048.8,2048.1,0.0011]
[1772118251985,0.97715545,2050.3,2048.5,0.99111462]
[1772118252191,1.21951219,2050.0,2048.8,1.22022647]
[1772118252395,1.21951219,2050.0,2048.9,0.991]
[1772118252575,0.94191194,2049.9,2048.9,0.991]
[1772118252757,0.001,2049.7,2048.9,0.991]
[1772118253388,0.94191194,2049.6,2048.9,0.991]
[1772118254172,0.94191194,2049.6,2049.0,1.22010736]
[1772118256070,0.001,2049.7,2049.0,1.22010736]
[1772118257573,0.97715545,2049.5,2048.5,1.22147052]
[1772118257760,0.97715545,2049.5,2048.5,0.0011]
[1772118257761,0.97715545,2049.4,2048.5,0.0011]
[1772118258188,0.97715545,2049.4,2048.3,0.0011]
[1772118258386,0.97715545,2049.0,2048.3,0.0011]
[1772118258585,0.97715545,2048.8,2048.3,0.0011]
[1772118259096,1.317,2048.9,2048.3,0.0011]
[1772118259265,0.97715545,2049.2,2048.3,0.0011]
[1772118260103,0.97715545,2049.1,2048.3,0.0011]
[1772118260473,0.97715545,2048.9,2048.3,0.0011]
[1772118261204,1.22010736,2049.0,2046.4,2.45704618]
[1772118261205,0.97715545,2048.7,2046.4,2.45704618]
[1772118261427,1.3,2048.8,2046.6,1.22153816]
[1772118261428,0.97715545,2048.3,2046.6,1.22153816]
[1772118261698,0.97715545,2048.3,2046.6,2.21353816]
[1772118262373,0.97715545,2048.3,2046.8,1.2214188]
[1772118262374,0.97715545,2048.1,2046.8,1.2214188]
[1772118262980,0.97715545,2048.1,2046.8,2.21253342]
[1772118263218,0.97715545,2048.1,2046.9,0.991]
[1772118263571,1.22058392,2048.2,2046.9,1.98211462]
[1772118263775,1.22046475,2048.4,2047.0,0.99111462]
[1772118263969,5.85887902,2048.5,2047.2,0.99111462]
[1772118263970,1.22043759,2048.5,2047.2,0.99111462]
[1772118264574,1.22022647,2048.8,2047.3,2.21223512]
[1772118264879,1.22022647,2048.8,2047.4,0.99111462]
[1772118265087,2.1973557,2048.9,2047.5,1.98211462]
[1772118265266,1.22020025,2048.9,2047.6,0.99111462]
[1772118265792,0.001,2049.0,2047.9,0.99111462]
[1772118265999,0.001,2049.0,2048.2,0.92863435]
[1772118266306,2.19788082,2049.7,2048.4,0.92863435]
[1772118266668,2.19788082,2049.7,2048.5,1.22040517]
[1772118266891,0.001,2049.7,2048.6,1.11549059]
[1772118267102,1.22069205,2049.7,2048.6,0.92863435]
[1772118267299,1.22069205,2049.7,2048.7,0.991]
[1772118267300,0.001,2049.7,2048.7,0.991]
[1772118267499,0.001,2049.7,2048.8,1.01055435]
[1772118267703,1.22071291,2049.7,2048.9,0.991]
[1772118268590,0.001,2049.7,2048.9,0.991]
[1772118268802,0.001,2049.7,2049.0,2.21010736]
[1772118270592,0.001,2049.7,2049.0,1.22010736]
[1772118270897,0.001,2049.7,2049.1,0.991]
[1772118271100,0.001,2049.7,2048.9,4.88042947]
[1772118271512,0.001,2049.7,2049.0,0.991]
[1772118271891,0.001,2049.7,2049.1,0.991]
[1772118272292,0.001,2049.7,2048.9,4.88042947]
[1772118272478,0.001,2049.7,2048.1,2.56483432]
[1772118272479,0.98753269,2049.7,2048.1,7.44739918]
[1772118272679,1.21975019,2049.6,2048.2,6.80277583]
[1772118272875,1.21975019,2049.6,2048.3,0.92863435]
[1772118273086,1.21975019,2049.6,2048.4,1.11549059]
[1772118273288,5.86653347,2049.7,2048.5,0.992]
[1772118273289,0.98753269,2049.7,2048.5,0.992]
[1772118273584,0.98753269,2049.7,2048.8,0.92863435]
[1772118273585,0.001,2049.7,2048.8,0.92863435]
[1772118274086,1.21933375,2050.3,2049.0,0.92863435]
[1772118274319,1.21933375,2050.3,2049.1,0.992]
[1772118274839,4.87712469,2050.4,2049.2,1.21998828]
[1772118275197,0.98653269,2050.5,2049.3,0.08192]
[1772118275544,0.001,2051.9,2049.5,0.92863435]
[1772118275690,0.001,2051.9,2051.0,1.01055435]
[1772118275896,1.21773015,2053.0,2051.5,0.08192]
[1772118276122,1.21773015,2053.0,2051.1,1.29]
[1772118276123,0.98653269,2052.9,2051.2,0.26877624]
[1772118276329,0.98653269,2052.9,2051.6,0.991]
[1772118276499,2.20426284,2053.0,2051.5,0.92863435]
[1772118276826,0.98653269,2052.7,2051.3,0.08192]
[1772118276989,0.9718964,2052.7,2051.4,0.991]
[1772118277191,0.9718964,2052.7,2051.2,1.21879875]
[1772118277414,0.9718964,2052.7,2051.3,0.991]
[1772118277729,0.9718964,2052.7,2051.4,0.991]
[1772118277925,0.9718964,2052.7,2051.5,0.99]
[1772118278298,0.9718964,2052.7,2051.2,1.21879875]
[1772118278819,1.21796745,2052.6,2051.4,1.21867992]
[1772118279327,1.21794705,2052.7,2051.5,0.18685624]
[1772118279699,1.21794705,2052.7,2051.5,0.26877624]
[1772118280218,1.21773015,2053.0,2051.5,0.26877624]
[1772118280819,2.16280503,2053.0,2051.6,1.21856112]
[1772118281223,0.94507488,2052.9,2051.6,1.21856112]
[1772118281429,0.94507488,2052.9,2051.7,0.99]
[1772118281735,0.94507488,2052.9,2051.5,1.21857554]
[1772118281932,0.94507488,2052.9,2051.8,0.99]
[1772118282235,0.94507488,2052.9,2051.9,0.99]
[1772118282441,1.21773015,2053.0,2051.9,0.99]
[1772118282622,1.21743364,2053.5,2052.0,1.13214153]
[1772118282800,1.21743364,2053.5,2052.1,0.989]
[1772118283001,5.81459302,2053.6,2052.2,0.989]
[1772118283193,5.81459302,2053.6,2052.3,0.989]
[1772118283408,5.81459302,2053.6,2052.1,4.87281941]
[1772118283904,5.81459302,2053.6,2052.2,2.12114153]
[1772118284110,5.81459302,2053.6,2052.3,0.94528529]
[1772118284304,0.94607488,2054.0,2052.6,0.18685624]
[1772118284526,0.94507488,2053.8,2052.4,0.18685624]
[1772118284695,0.94507488,2053.8,2052.7,0.989]
[1772118284898,0.94507488,2053.8,2052.4,0.18685624]
[1772118284899,2.16238996,2053.7,2052.4,1.21808614]
[1772118285130,2.16238996,2053.7,2052.5,0.988]
[1772118285756,2.16238996,2053.7,2052.6,0.988]
[1772118285932,2.16238996,2053.7,2052.7,0.988]
[1772118286097,1.308,2054.0,2052.7,0.988]
[1772118286300,1.308,2054.0,2052.9,2.37196331]
[1772118286301,0.001,2054.0,2052.9,2.37196331]
[1772118286508,1.2181438,2054.0,2052.9,1.21406153]
[1772118286895,0.001,2054.0,2053.1,1.21767083]
[1772118287112,0.001,2054.0,2053.2,0.988]
[1772118288025,0.001,2054.0,2053.1,2.20567083]
[1772118288543,0.001,2054.0,2053.2,0.18685624]
[1772118288935,1.21682088,2054.6,2053.4,0.18685624]
[1772118289445,1.21682088,2054.6,2053.4,1.13214153]
[1772118289944,1.21682088,2054.6,2053.4,0.94528529]
[1772118290309,1.21682088,2054.6,2053.5,0.988]
[1772118291109,1.21682088,2054.6,2053.6,0.988]
[1772118291305,0.94507488,2054.5,2053.6,0.988]
[1772118292030,0.94507488,2054.5,2053.4,0.987]
[1772118292531,0.94507488,2054.5,2053.0,0.987]
[1772118292732,0.94507488,2054.5,2052.7,1.21790812]
[1772118293039,0.94507488,2054.3,2052.7,2.20490812]
[1772118293284,0.94507488,2054.1,2052.7,0.987]
[1772118293617,0.94507488,2054.1,2052.1,7.35326588]
[1772118293816,0.94507488,2054.1,2052.2,2.20420485]
[1772118294929,0.94507488,2053.5,2052.2,0.986]
[1772118295115,0.94507488,2053.3,2052.2,2.20420115]
[1772118295442,0.94507488,2053.3,2052.3,0.987]
[1772118295949,1.21749293,2053.4,2052.3,0.987]
[1772118296515,0.9694696,2053.3,2052.3,0.987]
[1772118297219,1.21761153,2053.2,2052.4,1.21808614]
[1772118298859,0.9694696,2053.1,2052.3,0.987]
[1772118299215,0.9694696,2053.1,2052.0,4.87320548]
[1772118299216,0.9694696,2052.9,2052.0,0.986]
[1772118300154,0.9694696,2052.9,2051.7,0.986]
[1772118300456,0.9694696,2052.9,2051.5,1.97844139]
[1772118300815,1.21771783,2053.1,2051.7,0.18685624]
[1772118301022,0.9694696,2053.0,2051.6,1.07436139]
[1772118301245,1.21778946,2052.9,2051.7,1.21850173]
[1772118301529,2.18725906,2052.9,2051.7,1.21850173]
[1772118301740,1.21745956,2053.5,2052.2,1.49765397]
[1772118302046,1.21734996,2053.7,2052.5,0.18685624]
[1772118302421,4.86887171,2053.9,2052.5,1.17929763]
[1772118302620,4.86887171,2053.9,2052.4,0.08192]
[1772118302621,0.9694696,2053.8,2052.4,0.08192]
[1772118303448,1.21731508,2053.7,2052.4,3.7081815]
[1772118303747,1.21731508,2053.7,2052.5,1.17929763]
[1772118304257,1.21731508,2053.7,2052.5,0.99244139]
[1772118304563,0.9694696,2054.0,2052.6,0.985]
[1772118304744,1.2172356,2053.9,2052.7,1.07436139]
[1772118305446,1.303,2054.3,2052.7,1.07436139]
[1772118305447,1.21700576,2054.3,2053.0,2.49009536]
[1772118305626,1.21700576,2054.3,2053.1,0.985]
[1772118305835,0.9694696,2054.2,2053.1,0.985]
[1772118306148,1.49765397,2053.8,2052.4,0.985]
[1772118306324,0.9694696,2053.6,2052.4,0.985]
[1772118307325,1.21719655,2053.9,2052.6,2.21040884]
[1772118307733,1.2171794,2054.0,2052.7,1.68451021]
[1772118307932,1.2171794,2054.0,2052.8,0.99244139]
[1772118309036,1.2171794,2054.0,2052.9,0.984]
[1772118309352,4.86786911,2054.3,2052.9,0.984]
[1772118309353,1.21695954,2054.3,2053.0,1.21773015]